fUST/lending_fUST_20240102
["ID","MTS","AMOUNT","RATE_DAILY","PERIOD"]
[309852162,1704199858015,-153.0,0.00044521,2]
[309852163,1704199858024,-153.0,0.00044521,2]
[309852164,1704199858035,-153.0,0.00044521,2]
[309852165,1704199858045,-153.0,0.00044521,2]
[309852166,1704199858055,-153.0,0.00044521,2]
[309852167,1704199858064,-6392.56972507,0.000446,7]
[309852168,1704199858073,-150.0,0.00044614,2]
[309852169,1704199858083,-500.0,0.00044657,15]
[309852170,1704199858092,-301.0,0.00044677,2]
[309852171,1704199858102,-5000.0,0.000448,16]
[309852172,1704199858110,-5000.0,0.000448,10]
[309852173,1704199858120,-3642.0,0.00044877,15]
[309852174,1704199858130,-93140.24144878,0.000449,6]
[309852175,1704199858139,-500.0,0.00044931,15]
[309852176,1704199858148,-304.0,0.00044976,60]
[309852177,1704199858157,-301.66816502,0.00044977,4]
[309852178,1704199858166,-304.0,0.00044986,60]
[309852179,1704199858175,-2417.31280297,0.00044996,2]
[309852180,1704199858185,-154.86062544,0.00045,10]
[309852181,1704199858194,-251.58636317,0.00045,4]
[309852182,1704199858203,-806.44828597,0.00045,20]
[309852183,1704199858213,-2009.64,0.00045,24]
[309852184,1704199858222,-5249.31800972,0.00045,5]
[309852185,1704199858231,-3049.9861712,0.00045,120]
[309852186,1704199858241,-989.93595328,0.00045,2]
[309852187,1704199858250,-2181.0,0.00045,120]
[309852188,1704199858260,-19084.2259958,0.00045,120]
[309852189,1704199858269,-500.0,0.00045,120]
[309852190,1704199858279,-103670.51300955,0.00045,7]
[309852233,1704200829112,-191.22993756,0.00034175,6]
[309852234,1704200829134,-154.84515485,0.00034274,4]
[309852235,1704200829155,-154.84515485,0.00034275,5]
[309852236,1704200829176,-1000.0,0.00034275,7]
[309852237,1704200829195,-202.315409,0.00034278,2]
[309852238,1704200829224,-1447.879086,0.00034521,2]
[309852239,1704200829244,-27982.17687197,0.00034899,2]
[309852240,1704200829264,-8163.14328801,0.000349,2]
[309852241,1704200829284,-1500.05633405,0.00034999,2]
[309852242,1704200829303,-1447.879086,0.00035798,2]
[309852243,1704200829324,-9898.61970748,0.00035895,2]
[309852244,1704200829344,-5348.33,0.0003599,3]
[309852245,1704200829363,-7037.22,0.0003599,3]
[309852246,1704200829384,-7037.22,0.0003599,3]
[309852247,1704200829403,-25148.05239364,0.00036,4]
[309852248,1704200829425,-1447.879086,0.00037075,2]
[309852249,1704200829445,-408.654358,0.00037318,120]
[309852250,1704200829467,-199.73997364,0.00037765,2]
[309852251,1704200829487,-1447.879086,0.00038352,2]
[309852252,1704200829508,-150.83408251,0.00038426,120]
[309852253,1704200829529,-150.83408251,0.0003921,30]
[309852254,1704200829549,-238.0,0.00039406,2]
[309852255,1704200829573,-250.0,0.00039484,30]
[309852256,1704200829593,-1447.879086,0.0003963,2]
[309852257,1704200829611,-155.40205275,0.000398,2]
[309852258,1704200829631,-22351.79970627,0.0003987,2]
[309852259,1704200829651,-174.54923641,0.000399,2]
[309852260,1704200829671,-155.0,0.00039956,2]
[309852261,1704200829690,-454.22642426,0.0004,2]
[309852262,1704200829709,-5502.53184634,0.0004,2]
[309852263,1704200829732,-150.83408251,0.0004001,7]
[309852264,1704200829753,-47665.91373193,0.00040142,2]
[309852265,1704200829774,-150.83408251,0.00040827,4]
[309852266,1704200829795,-174.54923639,0.000409,2]
[309852267,1704200829817,-891.34379596,0.00040954,4]
[309852268,1704200829837,-166.8848065,0.00040954,4]
[309852269,1704200829859,-455.8065565,0.00040954,4]
[309852270,1704200829881,-590.09569667,0.00040954,2]
[309852271,1704200830004,-1311.95614961,0.00040954,4]
[309852272,1704200830026,-2940.551191,0.00040954,4]
[309852273,1704200830047,-739.93806711,0.00040954,2]
[309852274,1704200830068,-155.60750685,0.00040954,4]
[309852275,1704200830088,-333.75767672,0.00040954,4]
[309852276,1704200830107,-710.20335955,0.00040954,4]
[309852277,1704200830127,-1050.30153828,0.00040954,5]
[309852278,1704200830146,-155.19982648,0.00040954,2]
[309852279,1704200830166,-790.9739129,0.00040954,4]
[309852280,1704200830186,-5883.63656447,0.00040954,4]
[309852281,1704200830206,-984.5444071,0.00040954,2]
[309852282,1704200830227,-178.12390088,0.00040954,4]
[309852283,1704200830247,-154.92253873,0.00040954,4]
[309852284,1704200830267,-160.00087649,0.00040954,2]
[309852285,1704200830286,-63344.32551892,0.00040956,2]
[309852286,1704200836087,-3537.57585844,0.00035797,2]
[309852287,1704200836107,-28954.35529108,0.00040956,2]
[309852288,1704200836127,-3827.79725373,0.00041,10]
[309852289,1704200836148,-247.0,0.00041065,60]
[309852290,1704200836168,-247.0,0.00041075,60]
[309852291,1704200836188,-247.0,0.00041085,60]
[309852292,1704200836210,-4691.48,0.00041085,3]
[309852293,1704200836229,-433.98784557,0.00041094,2]
[309852294,1704200836248,-500.0,0.00041095,7]
[309852295,1704200836267,-500.0,0.00041095,7]
[309852296,1704200836287,-545.70342663,0.00041095,7]
[309852297,1704200836306,-512.47450515,0.00041095,7]
[309852298,1704200836328,-503.16301792,0.00041095,7]
[309852299,1704200836347,-500.0,0.00041095,7]
[309852300,1704200836370,-500.0,0.00041095,7]
[309852301,1704200836391,-500.0,0.00041095,7]
[309852302,1704200836411,-500.0,0.00041095,7]
[309852303,1704200836432,-353.49089205,0.00041095,7]
[309852304,1704200836450,-500.0,0.00041095,7]
[309852305,1704200836468,-500.0,0.00041095,7]
[309852306,1704200836489,-500.0,0.00041095,7]
[309852307,1704200836509,-500.0,0.00041095,7]
[309852308,1704200836530,-557.39496908,0.00041095,7]
[309852309,1704200836549,-390.34631472,0.00041095,7]
[309852310,1704200836569,-500.0,0.00041095,7]
[309852311,1704200836592,-189.30965672,0.00041095,7]
[309852312,1704200836610,-500.0,0.00041095,7]
[309852313,1704200836631,-500.0,0.00041095,7]
[309852314,1704200836651,-500.0,0.00041095,7]
[309852315,1704200836672,-503.37188405,0.00041095,7]
[309852316,1704200836692,-500.0,0.00041095,7]
[309852317,1704200836711,-500.0,0.00041095,7]
[309852318,1704200836731,-500.94869081,0.00041095,7]
[309852319,1704200836749,-500.0,0.00041095,10]
[309852320,1704200836768,-533.85057654,0.00041095,7]
[309852321,1704200836788,-516.1440691,0.00041095,7]
[309852322,1704200836807,-500.0,0.00041095,7]
[309852323,1704200836827,-503.19921092,0.00041095,7]
[309852324,1704200836846,-500.0,0.00041095,7]
[309852325,1704200836865,-500.0,0.00041095,7]
[309852326,1704200836884,-500.0,0.00041095,7]
[309852327,1704200836902,-633.07281392,0.00041095,7]
[309852328,1704200836922,-500.92543724,0.00041095,7]
[309852329,1704200836943,-501.22713174,0.00041095,7]
[309852330,1704200836961,-420.21795715,0.00041095,7]
[309852331,1704200836984,-500.0,0.00041095,7]
[309852332,1704200837004,-500.0,0.00041095,7]
[309852333,1704200837023,-500.0,0.00041095,7]
[309852334,1704200837046,-500.0,0.00041095,7]
[309852335,1704200837066,-502.45000599,0.00041095,7]
[309852336,1704200837086,-324.77410654,0.00041095,7]
[309852337,1704200837106,-500.0,0.00041095,2]
[309852338,1704200837126,-500.0,0.00041095,7]
[309852339,1704200837145,-380.74846548,0.00041095,7]
[309852340,1704200837165,-500.0,0.00041095,7]
[309852341,1704200837184,-500.0,0.00041095,7]
[309852342,1704200837204,-504.3557135,0.00041095,7]
[309852343,1704200837224,-387.15833968,0.00041095,7]
[309852344,1704200837243,-500.0,0.00041095,7]
[309852345,1704200837264,-500.0,0.00041095,7]
[309852346,1704200837283,-500.0,0.00041095,7]
[309852347,1704200837304,-500.0,0.00041095,7]
[309852348,1704200837324,-500.34905606,0.00041095,7]
[309852349,1704200837343,-500.0,0.00041095,7]
[309852350,1704200837364,-500.0,0.00041095,7]
[309852351,1704200837382,-500.0,0.00041095,7]
[309852352,1704200837402,-501.29390422,0.00041095,7]
[309852353,1704200837421,-500.0,0.00041095,7]
[309852354,1704200837440,-500.0,0.00041095,7]
[309852355,1704200837459,-500.0,0.00041095,7]
[309852356,1704200837478,-546.62189426,0.00041095,7]
[309852357,1704200837498,-500.0,0.00041095,7]
[309852358,1704200837517,-500.0,0.00041095,7]
[309852359,1704200837536,-500.0,0.00041095,7]
[309852360,1704200837557,-500.92608889,0.00041095,7]
[309852361,1704200837577,-501.06573248,0.00041095,7]
[309852362,1704200837598,-456.09866089,0.00041095,7]
[309852363,1704200837619,-500.0,0.00041095,7]
[309852364,1704200837639,-575.68676818,0.00041095,7]
[309852365,1704200837660,-500.0,0.00041095,7]
[309852366,1704200837680,-500.0,0.00041095,7]
[309852367,1704200837699,-569.15903934,0.00041095,7]
[309852368,1704200837719,-500.0,0.00041095,7]
[309852369,1704200837738,-500.0,0.00041095,7]
[309852370,1704200837758,-450.0,0.00041095,7]
[309852371,1704200837874,-500.0,0.00041095,7]
[309852372,1704200837894,-350.46453029,0.00041095,7]
[309852373,1704200837912,-500.0,0.00041095,7]
[309852374,1704200837932,-500.0,0.00041095,7]
[309852375,1704200837953,-558.86989218,0.00041095,7]
[309852376,1704200837973,-500.0,0.00041095,7]
[309852377,1704200837993,-500.0,0.00041095,7]
[309852378,1704200838014,-500.0,0.00041095,7]
[309852379,1704200838038,-502.60353928,0.00041095,7]
[309852380,1704200838058,-500.0,0.00041095,7]
[309852381,1704200838079,-316.02409474,0.00041095,7]
[309852382,1704200838100,-500.0,0.00041095,7]
[309852383,1704200838120,-500.0,0.00041095,7]
[309852384,1704200838140,-500.0,0.00041095,7]
[309852385,1704200838161,-500.0,0.00041095,7]
[309852386,1704200838182,-500.0,0.00041095,7]
[309852387,1704200838202,-504.73848449,0.00041095,7]
[309852388,1704200838221,-500.0,0.00041095,7]
[309852389,1704200838241,-500.0,0.00041095,7]
[309852390,1704200838260,-500.0,0.00041095,7]
[309852391,1704200838279,-500.0,0.00041095,7]
[309852392,1704200838296,-347.59588936,0.00041095,7]
[309852393,1704200838316,-500.0,0.00041095,7]
[309852394,1704200838335,-500.0,0.00041095,7]
[309852395,1704200838354,-500.0,0.00041095,7]
[309852396,1704200838375,-166.65980159,0.00041095,7]
[309852420,1704201032818,-1000.0,0.00040089,7]
[309852421,1704201032828,-160.0,0.0004009,4]
[309852422,1704201032838,-154.84515485,0.0004009,8]
[309852423,1704201032849,-866.05632,0.00040092,120]
[309852424,1704201032859,-24900.0,0.00040094,2]
[309852425,1704201032869,-160.00087649,0.00041093,2]
[309852426,1704201032880,-3582.10878507,0.00041094,2]
[309852427,1704201032890,-216.99484391,0.00041095,7]
[309852428,1704201032901,-500.0,0.00041095,7]
[309852429,1704201032911,-500.0,0.00041095,7]
[309852430,1704201032923,-500.0,0.00041095,7]
[309852431,1704201032932,-500.0,0.00041095,7]
[309852432,1704201032943,-203.45177522,0.00041095,7]
[309852433,1704201032953,-504.99921792,0.00041095,7]
[309852434,1704201032964,-520.24465914,0.00041095,7]
[309852435,1704201032974,-500.0,0.00041095,7]
[309852436,1704201032984,-500.0,0.00041095,7]
[309852437,1704201032995,-500.0,0.00041095,7]
[309852438,1704201033005,-500.0,0.00041095,7]
[309852439,1704201033016,-500.0,0.00041095,7]
[309852440,1704201033027,-504.95703751,0.00041095,7]
[309852441,1704201033038,-502.16963353,0.00041095,7]
[309852442,1704201033048,-500.0,0.00041095,7]
[309852443,1704201033059,-500.0,0.00041095,7]
[309852444,1704201033068,-505.3601957,0.00041095,7]
[309852445,1704201033077,-500.0,0.00041095,7]
[309852446,1704201033087,-500.0,0.00041095,7]
[309852447,1704201033097,-500.0,0.00041095,7]
[309852448,1704201033110,-500.0,0.00041095,7]
[309852449,1704201033120,-500.0,0.00041095,7]
[309852450,1704201033130,-500.0,0.00041095,7]
[309852451,1704201033139,-500.0,0.00041095,7]
[309852452,1704201033150,-500.0,0.00041095,7]
[309852453,1704201033159,-500.0,0.00041095,7]
[309852454,1704201033169,-500.0,0.00041095,7]
[309852455,1704201033180,-500.0,0.00041095,7]
[309852456,1704201033190,-500.0,0.00041095,7]
[309852457,1704201033199,-500.0,0.00041095,7]
[309852458,1704201033209,-500.0,0.00041095,7]
[309852459,1704201033218,-503.37375583,0.00041095,7]
[309852460,1704201033230,-602.55734778,0.00041095,7]
[309852461,1704201033239,-500.0,0.00041095,7]
[309852462,1704201033249,-500.0,0.00041095,7]
[309852463,1704201033258,-501.60078934,0.00041095,7]
[309852464,1704201033267,-500.0,0.00041095,7]
[309852465,1704201033276,-500.0,0.00041095,7]
[309852466,1704201033285,-500.0,0.00041095,7]
[309852467,1704201033294,-500.0,0.00041095,7]
[309852468,1704201033304,-500.0,0.00041095,7]
[309852469,1704201033314,-500.0,0.00041095,7]
[309852470,1704201033323,-500.0,0.00041095,7]
[309852471,1704201033334,-500.0,0.00041095,7]
[309852472,1704201033345,-500.0,0.00041095,7]
[309852473,1704201033355,-500.0,0.00041095,7]
[309852474,1704201033364,-500.0,0.00041095,7]
[309852475,1704201033373,-500.0,0.00041095,7]
[309852476,1704201033382,-500.0,0.00041095,7]
[309852477,1704201033392,-500.0,0.00041095,7]
[309852478,1704201033401,-500.0,0.00041095,7]
[309852479,1704201033411,-500.0,0.00041095,7]
[309852480,1704201033421,-500.0,0.00041095,7]
[309852481,1704201033430,-500.0,0.00041095,7]
[309852482,1704201033440,-500.0,0.00041095,7]
[309852483,1704201033449,-502.49577849,0.00041095,7]
[309852484,1704201033459,-500.0,0.00041095,7]
[309852485,1704201033471,-500.0,0.00041095,7]
[309852486,1704201033481,-500.0,0.00041095,7]
[309852487,1704201033492,-500.0,0.00041095,7]
[309852488,1704201033502,-500.0,0.00041095,7]
[309852489,1704201033512,-500.0,0.00041095,7]
[309852490,1704201033533,-528.60377604,0.00041095,7]
[309852491,1704201033543,-500.0,0.00041095,7]
[309852492,1704201033553,-500.0,0.00041095,7]
[309852493,1704201033564,-500.0,0.00041095,7]
[309852494,1704201033575,-155.40486888,0.00041095,7]
[309852495,1704201033585,-500.0,0.00041095,7]
[309852496,1704201033594,-500.0,0.00041095,7]
[309852497,1704201033604,-500.0,0.00041095,7]
[309852498,1704201033613,-500.0,0.00041095,7]
[309852499,1704201033623,-500.0,0.00041095,7]
[309852500,1704201033633,-500.0,0.00041095,7]
[309852501,1704201033643,-500.0,0.00041095,7]
[309852502,1704201033653,-500.0,0.00041095,7]
[309852503,1704201033666,-521.44079199,0.00041095,7]
[309852504,1704201033676,-464.53546455,0.00041095,2]
[309852505,1704201033686,-500.0,0.00041095,7]
[309852506,1704201033695,-500.0,0.00041095,2]
[309852507,1704201033705,-500.0,0.00041095,7]
[309852508,1704201033714,-500.0,0.00041095,7]
[309852509,1704201033724,-500.0,0.00041095,7]
[309852510,1704201033735,-518.03156489,0.00041095,7]
[309852511,1704201033744,-566.64355474,0.00041095,7]
[309852512,1704201033754,-500.0,0.00041095,7]
[309852513,1704201033764,-500.0,0.00041095,7]
[309852514,1704201033774,-500.0,0.00041095,7]
[309852515,1704201033784,-508.69876891,0.00041095,7]
[309852516,1704201033793,-327.85970042,0.00041095,7]
[309852517,1704201033804,-509.11119532,0.00041095,7]
[309852518,1704201033815,-500.01933601,0.00041095,7]
[309852519,1704201033826,-500.0,0.00041095,7]
[309852520,1704201033836,-500.0,0.00041095,7]
[309852521,1704201033846,-246.25360083,0.00041095,7]
[309852522,1704201033857,-340.05455668,0.00041095,7]
[309852523,1704201033866,-500.0,0.00041095,7]
[309852524,1704201033876,-500.44207988,0.00041095,7]
[309852525,1704201033885,-500.0,0.00041095,7]
[309852526,1704201033895,-507.09872832,0.00041095,7]
[309852527,1704201033904,-500.0,0.00041095,7]
[309852528,1704201033914,-500.0,0.00041095,7]
[309852529,1704201033924,-500.0,0.00041095,7]
[309852530,1704201033933,-500.0,0.00041095,7]
[309852531,1704201033943,-500.0,0.00041095,7]
[309852532,1704201033953,-500.0,0.00041095,7]
[309852533,1704201033962,-500.0,0.00041095,7]
[309852534,1704201033971,-500.0,0.00041095,7]
[309852535,1704201033982,-500.0,0.00041095,7]
[309852536,1704201033992,-1602.80013817,0.00041095,7]
[309852537,1704201034002,-500.0,0.00041095,7]
[309852538,1704201034012,-500.0,0.00041095,7]
[309852539,1704201034022,-500.85030112,0.00041095,7]
[309852540,1704201034032,-500.0,0.00041095,7]
[309852541,1704201034042,-500.0,0.00041095,7]
[309852542,1704201034052,-500.0,0.00041095,7]
[309852543,1704201034061,-500.0,0.00041095,7]
[309852544,1704201034071,-500.0,0.00041095,7]
[309852545,1704201034080,-500.0,0.00041095,7]
[309852546,1704201034090,-242.21567882,0.00041095,7]
[309852547,1704201034100,-205.39912874,0.00041095,7]
[309852548,1704201034110,-500.0,0.00041095,7]
[309852549,1704201034120,-255.00198031,0.00041095,7]
[309852550,1704201034129,-500.0,0.00041095,7]
[309852551,1704201034139,-509.64880984,0.00041095,7]
[309852552,1704201034149,-500.0,0.00041095,7]
[309852553,1704201034158,-500.0,0.00041095,7]
[309852554,1704201034168,-500.0,0.00041095,7]
[309852555,1704201034178,-500.0,0.00041095,7]
[309852556,1704201034188,-500.0,0.00041095,7]
[309852557,1704201034197,-500.0,0.00041095,7]
[309852558,1704201034207,-500.0,0.00041095,7]
[309852559,1704201034217,-154.84515485,0.00041095,4]
[309852560,1704201034227,-514.24530831,0.00041095,7]
[309852561,1704201034236,-500.0,0.00041095,7]
[309852562,1704201034245,-500.0,0.00041095,7]
[309852563,1704201034345,-500.0,0.00041095,7]
[309852564,1704201034355,-500.0,0.00041095,7]
[309852565,1704201034364,-500.0,0.00041095,7]
[309852566,1704201034374,-500.0,0.00041095,7]
[309852567,1704201034384,-944.58,0.00041095,3]
[309852568,1704201034393,-510.12991902,0.00041095,7]
[309852569,1704201034403,-500.50496358,0.00041095,7]
[309852570,1704201034412,-150.0,0.00041095,7]
[309852571,1704201034421,-500.0,0.00041095,7]
[309852572,1704201034431,-504.31060641,0.00041095,2]
[309852573,1704201034440,-500.0,0.00041095,7]
[309852574,1704201034450,-500.0,0.00041095,7]
[309852575,1704201034460,-509.90108145,0.00041095,7]
[309852576,1704201034469,-500.0,0.00041095,7]
[309852577,1704201034480,-157.5696183,0.00041095,7]
[309852578,1704201034490,-543.27081281,0.00041095,7]
[309852579,1704201034499,-500.0,0.00041095,7]
[309852580,1704201034508,-500.0,0.00041095,7]
[309852581,1704201034518,-304.81222651,0.00041095,7]
[309852582,1704201034527,-500.0,0.00041095,7]
[309852583,1704201034536,-500.0,0.00041095,7]
[309852584,1704201034545,-500.0,0.00041095,7]
[309852585,1704201034555,-500.0,0.00041095,7]
[309852586,1704201034564,-500.0,0.00041095,7]
[309852587,1704201034574,-576.59284015,0.00041095,7]
[309852588,1704201034583,-502.28522468,0.00041232,7]
[309852589,1704201034593,-500.0,0.00041232,7]
[309852590,1704201034602,-500.0,0.00041232,7]
[309852591,1704201034611,-500.0,0.00041232,7]
[309852592,1704201034620,-500.0,0.00041232,7]
[309852593,1704201034630,-500.0,0.00041232,2]
[309852594,1704201034639,-500.0,0.00041232,7]
[309852595,1704201034649,-395.09114881,0.00041232,7]
[309852596,1704201034658,-506.58995733,0.00041232,7]
[309852597,1704201034667,-506.98410647,0.00041232,7]
[309852598,1704201034677,-500.0,0.00041232,7]
[309852599,1704201034686,-500.0,0.00041232,7]
[309852600,1704201034695,-632.4033822,0.00041232,7]
[309852601,1704201034705,-500.0,0.00041232,7]
[309852602,1704201034714,-500.0,0.00041232,7]
[309852603,1704201034723,-500.0,0.00041232,7]
[309852604,1704201034732,-500.0,0.00041232,7]
[309852605,1704201034742,-500.0,0.00041232,7]
[309852606,1704201034751,-499.03209291,0.00041232,7]
[309852607,1704201034760,-500.0,0.00041232,7]
[309852608,1704201034769,-500.0,0.00041232,7]
[309852609,1704201034778,-500.0,0.00041232,7]
[309852610,1704201034787,-500.0,0.00041232,7]
[309852611,1704201034797,-500.0,0.00041232,7]
[309852612,1704201034806,-500.0,0.00041232,7]
[309852613,1704201034816,-500.0,0.00041232,7]
[309852614,1704201034825,-500.0,0.00041232,7]
[309852615,1704201034835,-500.0,0.00041232,7]
[309852616,1704201034844,-500.0,0.00041232,7]
[309852617,1704201034853,-500.0,0.00041232,2]
[309852618,1704201034862,-500.0,0.00041232,7]
[309852619,1704201034871,-500.0,0.00041232,7]
[309852620,1704201034881,-460.61,0.00041232,7]
[309852621,1704201034890,-500.0,0.00041232,7]
[309852622,1704201034899,-500.0,0.00041232,7]
[309852623,1704201034908,-500.0,0.00041232,7]
[309852624,1704201034917,-500.0,0.00041232,7]
[309852625,1704201034926,-202.37,0.00041232,7]
[309852626,1704201034935,-500.0,0.00041232,7]
[309852627,1704201034944,-511.68684991,0.00041232,7]
[309852628,1704201034952,-500.0,0.00041232,7]
[309852629,1704201034961,-500.0,0.00041232,7]
[309852630,1704201034970,-944.58,0.00041232,3]
[309852631,1704201034980,-500.0,0.00041232,7]
[309852632,1704201034989,-185.92,0.00041232,7]
[309852633,1704201034998,-500.0,0.00041232,7]
[309852634,1704201035007,-500.0,0.00041369,7]
[309852635,1704201035016,-500.0,0.00041369,7]
[309852636,1704201035025,-500.0,0.00041369,7]
[309852637,1704201035034,-500.0,0.00041369,2]
[309852638,1704201035043,-500.0,0.00041369,7]
[309852639,1704201035052,-500.0,0.00041369,7]
[309852640,1704201035061,-500.0,0.00041369,7]
[309852641,1704201035070,-500.0,0.00041369,7]
[309852642,1704201035080,-500.0,0.00041369,7]
[309852643,1704201035090,-500.0,0.00041369,7]
[309852644,1704201035103,-944.58,0.00041369,3]
[309852645,1704201035112,-500.0,0.00041369,7]
[309852646,1704201035122,-500.0,0.00041506,7]
[309852647,1704201035132,-469.38878282,0.00041506,7]
[309852648,1704201035141,-500.0,0.00041506,7]
[309852649,1704201035152,-500.0,0.00041506,2]
[309852650,1704201035162,-500.0,0.00041506,7]
[309852651,1704201035172,-500.0,0.00041506,7]
[309852652,1704201035183,-500.0,0.00041506,7]
[309852653,1704201035193,-500.0,0.00041506,7]
[309852654,1704201035203,-500.0,0.00041506,7]
[309852655,1704201035213,-500.0,0.00041506,7]
[309852656,1704201035223,-944.58,0.00041506,3]
[309852657,1704201035233,-500.0,0.00041506,7]
[309852658,1704201035243,-500.0,0.00041643,7]
[309852659,1704201035252,-500.0,0.00041643,7]
[309852660,1704201035262,-500.0,0.00041643,2]
[309852661,1704201035271,-484.98,0.00041643,7]
[309852662,1704201035280,-500.0,0.00041643,7]
[309852663,1704201035290,-500.0,0.00041643,7]
[309852664,1704201035299,-560.67944975,0.00041643,7]
[309852665,1704201035308,-500.0,0.00041643,7]
[309852666,1704201035318,-500.0,0.00041643,7]
[309852667,1704201035327,-944.58,0.00041643,3]
[309852668,1704201035337,-500.0,0.00041643,7]
[309852669,1704201035346,-500.0,0.0004178,7]
[309852670,1704201035355,-243.4,0.0004178,7]
[309852671,1704201035364,-219.70962482,0.0004178,2]
[309852672,1704201035374,-500.0,0.0004178,7]
[309852673,1704201035383,-500.0,0.0004178,7]
[309852674,1704201035393,-500.0,0.0004178,7]
[309852675,1704201035401,-500.0,0.0004178,7]
[309852676,1704201035411,-944.58,0.0004178,3]
[309852677,1704201035421,-500.0,0.0004178,7]
[309852678,1704201035431,-174.54923639,0.000419,2]
[309852679,1704201035440,-500.0,0.00041917,7]
[309852680,1704201035449,-500.0,0.00041917,7]
[309852681,1704201035459,-500.0,0.00041917,7]
[309852682,1704201035468,-500.0,0.00041917,7]
[309852683,1704201035478,-500.0,0.00041917,7]
[309852684,1704201035488,-944.58,0.00041917,3]
[309852685,1704201035497,-439.4015933,0.00041998,2]
[309852686,1704201035507,-297.10005741,0.00042,2]
[309852687,1704201035517,-95450.61772887,0.00042,2]
[309852688,1704201035527,-150.0,0.00042,26]
[309852689,1704201035537,-500.0,0.00042054,7]
[309852690,1704201035546,-500.0,0.00042054,7]
[309852691,1704201035556,-500.0,0.00042054,7]
[309852692,1704201035565,-411.51065329,0.00042054,7]
[309852693,1704201035575,-500.0,0.00042054,7]
[309852694,1704201035585,-944.58,0.00042054,3]
[309852695,1704201035594,-326.9,0.00042191,7]
[309852696,1704201035604,-500.0,0.00042191,7]
[309852697,1704201035613,-500.0,0.00042191,7]
[309852698,1704201035623,-500.0,0.00042191,7]
[309852699,1704201035633,-944.58,0.00042191,3]
[309852700,1704201035642,-1276.54424332,0.000422,30]
[309852701,1704201035653,-500.0,0.00042328,7]
[309852702,1704201035663,-483.23592559,0.00042328,7]
[309852703,1704201035672,-500.0,0.00042328,7]
[309852704,1704201035682,-944.58,0.00042328,3]
[309852705,1704201035691,-238.0,0.00042406,2]
[309852706,1704201035700,-500.0,0.00042465,7]
[309852707,1704201035710,-500.0,0.00042465,7]
[309852708,1704201035720,-944.58,0.00042465,3]
[309852709,1704201035729,-500.0,0.00042465,15]
[309852710,1704201035739,-5000.0,0.00042538,3]
[309852711,1704201035749,-500.0,0.00042602,7]
[309852712,1704201035759,-500.0,0.00042602,7]
[309852713,1704201035769,-944.58,0.00042602,3]
[309852714,1704201035778,-150.0,0.000427,2]
[309852715,1704201035788,-500.0,0.00042739,7]
[309852716,1704201035797,-500.0,0.00042739,7]
[309852717,1704201035807,-944.58,0.00042739,3]
[309852718,1704201035817,-500.0,0.00042739,15]
[309852719,1704201035827,-9361.15259472,0.0004275,5]
[309852720,1704201035836,-642.63225691,0.00042876,7]
[309852721,1704201035846,-500.0,0.00042876,7]
[309852722,1704201035855,-944.58,0.00042876,3]
[309852723,1704201035866,-1817.11625641,0.00042999,2]
[309852724,1704201035876,-944.58,0.00043013,3]
[309852725,1704201035885,-500.0,0.00043013,15]
[309852726,1704201035895,-944.58,0.0004315,3]